bitfinex/quotes_BTCUSD_20240703
["timestamp","ask_amount","ask_price","bid_price","bid_amount"]
[1719974954859,0.89373472,61391.0,61390.0,0.02316004]
[1719974955326,0.75436753,61391.0,61390.0,0.02316004]
[1719974955527,0.56974793,61391.0,61390.0,0.02316004]
[1719974955688,1.01506619,61391.0,61390.0,0.02316004]
[1719974956337,1.01507816,61391.0,61390.0,0.02316004]
[1719974956493,0.75445416,61391.0,61390.0,0.02316004]
[1719974956897,0.75445416,61391.0,61390.0,0.01916004]
[1719974957100,0.63318476,61391.0,61390.0,0.003]
[1719974957348,0.08894876,61391.0,61386.0,0.02993475]
[1719974957526,0.08894876,61391.0,61390.0,0.08115582]
[1719974957527,0.07275499,61391.0,61390.0,0.08115582]
[1719974957696,0.11144843,61391.0,61390.0,0.09731586]
[1719974957912,0.03869344,61391.0,61390.0,0.28754941]
[1719974958111,0.01318128,61391.0,61390.0,0.61964941]
[1719974958312,0.01318128,61391.0,61390.0,0.58971466]
[1719974958560,0.01318128,61395.0,61390.0,0.58971466]
[1719974958707,0.01318128,61394.0,61390.0,0.58971466]
[1719974958912,0.03869099,61393.0,61390.0,0.58971466]
[1719974959117,0.01318128,61392.0,61390.0,0.58971466]
[1719974959315,0.01318128,61391.0,61390.0,0.58971466]
[1719974959547,0.01318128,61391.0,61390.0,0.77896341]
[1719974959895,0.01318128,61391.0,61390.0,1.03959141]
[1719974960111,0.01318128,61391.0,61390.0,1.04659141]
[1719974960541,0.01318128,61391.0,61390.0,1.05859141]
[1719974960747,0.01318128,61391.0,61390.0,1.05159141]
[1719974960945,0.01318128,61391.0,61390.0,1.06351541]
[1719974961280,0.01402128,61391.0,61390.0,1.00358066]
[1719974961513,0.01402128,61391.0,61390.0,1.03351541]
[1719974961885,0.00084,61391.0,61390.0,1.03351541]
[1719974962676,0.00084,61391.0,61390.0,1.02151541]
[1719974962877,0.00084,61391.0,61390.0,1.05151541]
[1719974963100,0.01091706,61391.0,61390.0,1.06551541]
[1719974963877,0.01091706,61391.0,61390.0,1.05451541]
[1719974964316,0.01091706,61391.0,61390.0,1.06651541]
[1719974964573,0.01091706,61391.0,61390.0,1.05035537]
[1719974964940,0.01091679,61391.0,61390.0,1.05035537]
[1719974965312,0.01091679,61391.0,61390.0,1.06939054]
[1719974966571,0.01091679,61391.0,61390.0,0.62713472]
[1719974966881,0.01091679,61391.0,61390.0,0.59719997]
[1719974967385,0.01091679,61391.0,61390.0,0.62713472]
[1719974967691,0.01091679,61391.0,61390.0,0.59719997]
[1719974968103,0.01092149,61391.0,61390.0,0.59719997]
[1719974968650,0.01092149,61391.0,61390.0,0.39650672]
[1719974968854,0.01092188,61391.0,61390.0,0.39650672]
[1719974969501,0.01092188,61391.0,61390.0,0.65713472]
[1719974970211,0.01092188,61391.0,61390.0,0.62713472]
[1719974971053,0.01092188,61391.0,61390.0,0.39650672]
[1719974971169,0.03643118,61391.0,61390.0,0.39650672]
[1719974971369,0.03643118,61391.0,61390.0,0.026924]
[1719974971370,0.01091679,61391.0,61390.0,0.026924]
[1719974971583,0.03642867,61391.0,61390.0,0.026924]
[1719974971997,0.03642867,61391.0,61390.0,0.1872228]
[1719974972202,0.00084,61391.0,61390.0,0.1872228]
[1719974972810,0.09912101,61391.0,61390.0,0.1872228]
[1719974973253,0.02635228,61391.0,61390.0,0.026924]
[1719974973468,0.09913229,61391.0,61390.0,0.026924]
[1719974974297,0.09913236,61391.0,61390.0,0.026924]
[1719974974703,0.22944436,61391.0,61390.0,0.026924]
[1719974974922,0.25370404,61391.0,61390.0,0.026924]
[1719974975348,0.39770404,61391.0,61390.0,0.026924]
[1719974975759,0.30066428,61391.0,61390.0,0.026924]
[1719974975958,0.39770404,61391.0,61390.0,0.026924]
[1719974976637,0.30066428,61391.0,61390.0,0.026924]
[1719974976906,1.05481603,61391.0,61390.0,0.026924]
[1719974977399,1.01091228,61391.0,61390.0,0.026924]
[1719974977574,1.0554322,61391.0,61390.0,0.026924]
[1719974977774,1.0554325,61391.0,61390.0,0.026924]
[1719974978376,1.69204469,61391.0,61390.0,0.026924]
[1719974978583,1.90705716,61391.0,61390.0,0.026924]
[1719974978781,1.99103854,61391.0,61390.0,0.026924]
[1719974979162,1.99103854,61391.0,61390.0,0.014924]
[1719974979348,1.99103854,61391.0,61390.0,0.000924]
[1719974979545,2.1514016,61391.0,61390.0,0.000924]
[1719974980532,2.14588892,61391.0,61390.0,0.000924]
[1719974980808,2.15213208,61391.0,61390.0,0.000924]
[1719974981352,2.31558353,61391.0,61390.0,0.001924]
[1719974981552,2.15313208,61391.0,61390.0,0.001924]
[1719974981760,2.15622151,61391.0,61390.0,0.001924]
[1719974981978,2.15522151,61391.0,61390.0,0.001924]
[1719974982562,2.15616161,61391.0,61390.0,0.002924]
[1719974982742,2.15616161,61391.0,61390.0,0.001924]
[1719974982984,2.15516161,61391.0,61390.0,0.000924]
[1719974983154,2.15413208,61391.0,61390.0,0.001924]
[1719974983374,2.45413208,61391.0,61390.0,0.000924]
[1719974983505,2.61552467,61391.0,61390.0,0.000924]
[1719974983703,2.61552467,61391.0,61390.0,0.00186238]
[1719974983704,2.45221571,61391.0,61390.0,0.00186238]
[1719974983959,3.01483971,61391.0,61390.0,0.00186238]
[1719974984162,3.01483971,61391.0,61390.0,0.00086238]
[1719974984365,3.01583971,61391.0,61390.0,0.00186238]
[1719974984945,3.01483971,61391.0,61390.0,0.00086238]
[1719974985157,3.01483971,61391.0,61390.0,0.00186238]
[1719974985401,3.18004865,61391.0,61390.0,0.00286238]
[1719974985586,3.01683971,61391.0,61390.0,0.00286238]
[1719974985783,3.01483971,61391.0,61390.0,0.00186238]
[1719974985965,3.23448109,61391.0,61390.0,0.00186238]
[1719974986165,3.23448109,61391.0,61390.0,0.00286238]
[1719974986166,3.23548109,61391.0,61390.0,0.00286238]
[1719974986774,3.23715974,61391.0,61390.0,0.00286238]
[1719974987251,0.283963,61367.0,61366.0,0.48093494]
[1719974987457,1.0863176,61367.0,61366.0,0.49709498]
[1719974987711,1.31418254,61367.0,61366.0,0.01616004]
[1719974988152,1.27458257,61367.0,61366.0,0.01616004]
[1719974988719,1.27458257,61367.0,61366.0,0.02316004]
[1719974988889,1.27558257,61367.0,61366.0,0.02316004]
[1719974989328,1.27558257,61367.0,61366.0,0.02716004]
[1719974989925,1.27568609,61367.0,61366.0,0.02716004]
[1719974990133,1.25017381,61367.0,61366.0,0.02716004]
[1719974992415,1.25017381,61367.0,61366.0,0.011]
[1719974993055,1.25014475,61367.0,61366.0,0.011]
[1719974995016,1.09654475,61367.0,61366.0,0.011]
[1719974995418,1.09654475,61367.0,61366.0,0.011924]
[1719974996111,1.09656009,61367.0,61366.0,0.011924]
[1719974997249,0.93006009,61367.0,61366.0,0.011924]
[1719974997454,1.09656009,61367.0,61366.0,0.011924]
[1719974999519,1.09636599,61367.0,61366.0,0.011924]
[1719974999938,0.99646603,61367.0,61366.0,0.011924]
[1719975001847,0.99647305,61367.0,61366.0,0.011924]
[1719975003253,0.92987305,61367.0,61366.0,0.011924]
[1719975003397,0.99647305,61367.0,61366.0,0.011924]
[1719975004415,0.92987305,61367.0,61366.0,0.011924]
[1719975004616,0.99647305,61367.0,61366.0,0.011924]
[1719975004871,0.97994497,61367.0,61366.0,0.011924]
[1719975005095,0.99640766,61367.0,61366.0,0.011924]
[1719975005446,0.99554273,61367.0,61366.0,0.011924]
[1719975007277,1.02107017,61367.0,61366.0,0.011924]
[1719975007918,1.00460748,61367.0,61366.0,0.011924]
[1719975008100,0.95451944,61367.0,61366.0,0.011924]
[1719975008274,1.06149072,61367.0,61366.0,0.011924]
[1719975009684,1.38221672,61367.0,61366.0,0.011924]
[1719975009969,1.32221672,61367.0,61366.0,0.011924]
[1719975010697,1.32121672,61367.0,61366.0,0.004924]
[1719975010896,1.25461672,61367.0,61366.0,0.000924]
[1719975011117,1.25840333,61367.0,61366.0,0.000924]
[1719975011450,1.32500333,61367.0,61366.0,0.000924]
[1719975011650,1.32513002,61367.0,61366.0,0.000924]
[1719975012123,1.32813002,61367.0,61366.0,0.000924]
[1719975014131,1.27684252,61367.0,61366.0,0.000924]
[1719975014333,1.32820159,61367.0,61366.0,0.000924]
[1719975015246,1.38820159,61367.0,61366.0,0.000924]
[1719975016214,0.391159,61356.0,61355.0,0.340424]
[1719975016418,0.391159,61356.0,61355.0,0.5007228]
[1719975016419,0.43330852,61356.0,61355.0,0.5007228]
[1719975017224,0.43330653,61356.0,61355.0,0.5007228]
[1719975017405,0.43430653,61356.0,61355.0,0.5117228]
[1719975017601,0.17353353,61356.0,61355.0,0.5117228]
[1719975017857,0.43430653,61356.0,61355.0,0.5117228]
[1719975018305,0.01762009,61356.0,61355.0,0.58781759]
[1719975018506,0.01762009,61356.0,61355.0,0.52788284]
[1719975018708,0.01862009,61356.0,61355.0,0.53988284]
[1719975018920,0.04414618,61356.0,61355.0,0.53988284]
[1719975019116,0.01862009,61356.0,61355.0,0.53988284]
[1719975019316,0.04414715,61356.0,61355.0,0.53988284]
[1719975019720,0.17453315,61356.0,61355.0,0.53988284]
[1719975020534,0.17451993,61356.0,61355.0,0.53988284]
[1719975021507,0.17451993,61356.0,61355.0,0.5237228]
[1719975022194,0.43529293,61356.0,61355.0,0.5237228]
[1719975022952,0.69606593,61356.0,61355.0,0.5237228]
[1719975023499,0.69605818,61356.0,61355.0,0.5237228]
[1719975023906,0.67945906,61356.0,61355.0,0.5237228]
[1719975024102,0.04412598,61356.0,61355.0,0.5237228]
[1719975024365,0.43528498,61356.0,61355.0,0.5237228]
[1719975026463,0.42878367,61356.0,61355.0,0.5237228]
[1719975026645,0.43532217,61356.0,61355.0,0.5237228]
[1719975027056,0.435323,61356.0,61355.0,0.5237228]
[1719975028379,0.044164,61356.0,61355.0,0.5467228]
[1719975028996,0.03762465,61356.0,61355.0,0.5467228]
[1719975029171,0.04417239,61356.0,61355.0,0.5467228]
[1719975029593,0.04417239,61356.0,61355.0,0.60665755]
[1719975029818,0.04417239,61356.0,61355.0,2.72519955]
[1719975029819,0.00933085,61356.0,61355.0,2.72519955]
[1719975030029,0.20332826,61372.0,61369.0,0.38443475]
[1719975030176,0.1558755,61371.0,61370.0,0.1602988]
[1719975030377,0.1558755,61371.0,61369.0,0.34066004]
[1719975030378,0.130356,61370.0,61369.0,0.34066004]
[1719975030599,0.77458736,61370.0,61369.0,0.01616004]
[1719975031039,0.6773035,61370.0,61369.0,0.01616004]
[1719975031235,0.71163384,61370.0,61369.0,0.01616004]
[1719975031501,0.45092084,61370.0,61369.0,0.01616004]
[1719975031827,0.51390515,61370.0,61369.0,0.17645884]
[1719975032030,0.25319215,61370.0,61369.0,0.17645884]
[1719975032284,0.51390515,61370.0,61369.0,0.01616004]
[1719975032479,0.77846519,61370.0,61369.0,0.01616004]
[1719975032680,0.92441572,61370.0,61369.0,0.01616004]
[1719975032879,0.72777431,61370.0,61369.0,0.01616004]
[1719975033058,0.76223685,61370.0,61369.0,0.01616004]
[1719975033809,0.43492385,61370.0,61369.0,0.01616004]
[1719975034242,0.69563685,61370.0,61369.0,0.01616004]
[1719975034672,0.95634985,61370.0,61369.0,0.01616004]
[1719975035314,1.10231393,61370.0,61369.0,0.01616004]
[1719975035655,0.130378,61360.0,61359.0,0.1365]
[1719975035881,0.130378,61360.0,61359.0,0.31295884]
[1719975036042,0.15590467,61360.0,61359.0,0.31295884]
[1719975036428,0.22889314,61360.0,61359.0,0.31295884]
[1719975036628,0.15590467,61360.0,61359.0,0.31295884]
[1719975037394,0.15590467,61360.0,61359.0,0.32395884]
[1719975037589,0.19028901,61360.0,61359.0,0.32395884]
[1719975037765,0.31193646,61360.0,61359.0,0.32395884]
[1719975038112,0.31193646,61360.0,61359.0,0.30267284]
[1719975038113,0.15590467,61360.0,61359.0,0.30267284]
[1719975038321,0.22886659,61360.0,61359.0,0.30267284]
[1719975038531,0.15590467,61360.0,61359.0,0.30267284]
[1719975038869,0.41666067,61360.0,61359.0,0.29167284]
[1719975039068,0.41666067,61360.0,61359.0,0.18745884]
[1719975039069,0.48959244,61360.0,61359.0,0.18745884]
[1719975039282,0.41666067,61360.0,61359.0,0.19945884]
[1719975039504,0.41666067,61360.0,61359.0,0.18745884]
[1719975039676,0.8412835,61360.0,61359.0,0.01616004]
[1719975039883,0.77203956,61360.0,61359.0,0.02816004]
[1719975041001,0.77203956,61360.0,61359.0,0.012]
[1719975041199,0.77203956,61360.0,61359.0,0.022]
[1719975041655,0.70543956,61360.0,61359.0,0.012]
[1719975041802,0.82699171,61360.0,61359.0,0.012]
[1719975042168,0.82698932,61360.0,61359.0,0.023]
[1719975042645,0.70543956,61360.0,61359.0,0.023]
[1719975045488,0.77203956,61360.0,61359.0,0.023]
[1719975045860,0.70543956,61360.0,61359.0,0.023]
[1719975046063,0.77203956,61360.0,61359.0,0.023]
[1719975048356,0.74401667,61360.0,61359.0,0.023]
[1719975048556,0.77261423,61360.0,61359.0,0.023]
[1719975048975,0.77263951,61360.0,61359.0,0.023]
[1719975051030,0.89421405,61360.0,61359.0,0.023]
[1719975051199,0.74401667,61360.0,61359.0,0.023]
[1719975051401,0.84127581,61360.0,61359.0,0.023]
[1719975051601,0.84126725,61360.0,61359.0,0.023]
[1719975051867,0.74401667,61360.0,61359.0,0.353]
[1719975052066,0.84126987,61360.0,61359.0,0.353]
[1719975052440,0.84126987,61360.0,61359.0,0.023]
[1719975053050,0.74401667,61360.0,61359.0,0.023]
[1719975053464,0.77229685,61360.0,61359.0,0.023]
[1719975053661,0.70569685,61360.0,61359.0,0.023]
[1719975053867,0.89385703,61360.0,61359.0,0.023]
[1719975054477,0.77229685,61360.0,61359.0,0.023]
[1719975054859,0.89391036,61360.0,61359.0,0.023]
[1719975055684,0.77229685,61360.0,61359.0,0.023]
[1719975056261,0.89393007,61360.0,61359.0,0.023]
[1719975056540,0.17544007,61360.0,61359.0,0.5085988]
[1719975056742,0.09731634,61364.0,61362.0,0.05993475]
[1719975057067,0.07299133,61367.0,61362.0,0.05993475]
[1719975057068,0.07299133,61367.0,61363.0,0.58875462]
[1719975057243,0.20336033,61364.0,61363.0,0.1602988]
[1719975057441,0.48962315,61364.0,61363.0,0.1602988]
[1719975057674,0.41663182,61364.0,61363.0,0.1602988]
[1719975057960,0.48323182,61364.0,61363.0,0.1602988]
[1719975058163,0.41663182,61364.0,61363.0,0.1602988]
[1719975058372,0.02552382,61364.0,61363.0,0.1602988]
[1719975058570,0.02552382,61364.0,61363.0,0.4880988]
[1719975058932,0.12284314,61364.0,61363.0,0.4880988]
[1719975059368,0.02552382,61364.0,61363.0,0.4880988]
[1719975059711,0.02552382,61364.0,61363.0,0.4990988]
[1719975059917,0.02552382,61364.0,61363.0,0.1812988]
[1719975059918,0.15589282,61364.0,61363.0,0.1812988]
[1719975060118,0.56769382,61364.0,61363.0,0.1812988]
[1719975060373,0.56769275,61364.0,61363.0,0.1812988]
[1719975060753,0.56767302,61364.0,61363.0,0.1812988]
[1719975060952,0.53826125,61364.0,61363.0,0.1812988]
[1719975061165,0.56753246,61364.0,61363.0,0.1812988]
[1719975061369,0.44589743,61364.0,61363.0,0.1812988]
[1719975061580,0.51393714,61364.0,61363.0,0.1812988]
[1719975063014,0.77467614,61364.0,61363.0,0.1812988]
[1719975063217,0.77467614,61364.0,61363.0,0.021]
[1719975063218,0.96711661,61364.0,61363.0,0.021]
[1719975063356,1.29542694,61364.0,61363.0,0.021]
[1719975064114,1.26640982,61364.0,61363.0,0.021]
[1719975064254,1.29517714,61364.0,61363.0,0.021]
[1719975065383,1.29601714,61364.0,61363.0,0.021]
[1719975066401,1.26724982,61364.0,61363.0,0.021]
[1719975066596,1.29564714,61364.0,61363.0,0.021]
[1719975067416,1.44144368,61364.0,61363.0,0.021]
[1719975067756,0.65189,61360.0,61359.0,0.000924]
[1719975068051,0.77241114,61360.0,61359.0,0.01708404]
[1719975069221,0.77241114,61360.0,61359.0,0.02408404]
[1719975069631,0.77216113,61360.0,61359.0,0.02408404]
[1719975069836,0.77216113,61360.0,61359.0,0.03008404]
[1719975072691,0.74401382,61360.0,61359.0,0.03008404]
[1719975072895,0.89266113,61360.0,61359.0,0.03008404]
[1719975073129,0.8653742,61360.0,61359.0,0.013924]
[1719975073335,0.77132452,61360.0,61359.0,0.013924]
[1719975074344,0.82608657,61360.0,61359.0,0.013924]
[1719975074546,0.77132452,61360.0,61359.0,0.013924]
[1719975074744,0.89268657,61360.0,61359.0,0.013924]
[1719975075010,0.82608657,61360.0,61359.0,0.013924]
[1719975075205,0.89268657,61360.0,61359.0,0.013924]
[1719975075805,0.89239132,61360.0,61359.0,0.013924]
[1719975076031,0.77108989,61360.0,61359.0,0.013924]
[1719975076227,0.51033389,61360.0,61359.0,0.013924]
[1719975076428,0.17390132,61360.0,61359.0,0.4940228]
[1719975076705,0.2529763,61360.0,61359.0,0.4940228]
[1719975076828,0.1225983,61360.0,61359.0,0.4940228]
[1719975077033,0.02432382,61360.0,61359.0,0.4940228]
[1719975077655,0.02432382,61360.0,61359.0,0.57695755]
[1719975077859,0.02432382,61361.0,61360.0,0.3197]
[1719975078057,0.07280924,61363.0,61361.0,0.1491]
[1719975078058,0.02552468,61362.0,61361.0,0.1491]
[1719975078240,0.02552468,61362.0,61361.0,0.3323988]
[1719975078441,0.09834437,61362.0,61361.0,0.3323988]
[1719975078643,0.09834437,61362.0,61361.0,0.56293355]
[1719975078644,0.02552468,61362.0,61361.0,0.56293355]
[1719975078849,0.02552468,61363.0,61361.0,0.24323355]
[1719975079049,0.00084,61364.0,61362.0,0.50625781]
[1719975079473,0.00084,61364.0,61363.0,0.3197]
[1719975079676,0.00084,61364.0,61363.0,0.5029988]
[1719975080125,0.02636209,61364.0,61363.0,0.5029988]
[1719975080812,0.00084,61364.0,61363.0,0.5049988]
[1719975081752,0.00084,61364.0,61363.0,0.56593355]
[1719975081957,0.00084,61364.0,61363.0,1.72364755]
[1719975082155,0.00084,61364.0,61363.0,2.48439055]
[1719975082387,0.09703332,61374.0,61373.0,0.19203475]
[1719975082597,0.07277499,61386.0,61382.0,0.05993475]
[1719975082779,0.09829118,61385.0,61383.0,0.18655668]
[1719975082923,0.12254951,61384.0,61383.0,0.1832988]
[1719975083127,0.09826913,61384.0,61383.0,0.1832988]
[1719975083324,0.02551619,61384.0,61383.0,0.1832988]
[1719975083525,0.0666,61385.0,61383.0,0.1832988]
[1719975084155,0.0666,61385.0,61383.0,0.1912988]
[1719975084526,0.0666,61385.0,61383.0,0.1832988]
[1719975085040,0.0666,61385.0,61383.0,0.1602988]
[1719975085041,0.67715237,61384.0,61383.0,0.1602988]
[1719975085149,0.723287,61383.0,61382.0,0.01616004]
[1719975085351,0.74880577,61383.0,61382.0,0.01616004]
[1719975086392,1.27012177,61383.0,61382.0,0.02616004]
[1719975086549,1.43354818,61383.0,61382.0,0.03416004]
[1719975086756,1.33672177,61383.0,61382.0,0.02416004]
[1719975087113,1.33672177,61383.0,61382.0,0.03216004]
[1719975087392,1.40932791,61383.0,61382.0,0.02416004]
[1719975087548,1.40932791,61383.0,61382.0,0.02816004]
[1719975087549,1.33672177,61383.0,61382.0,0.02816004]
[1719975087755,1.53322095,61383.0,61382.0,0.02816004]
[1719975087952,1.53322095,61383.0,61382.0,0.02016004]
[1719975087953,1.58564702,61383.0,61382.0,0.02016004]
[1719975088153,1.4645832,61383.0,61382.0,0.02016004]
[1719975088354,1.46469501,61383.0,61382.0,0.02716004]
[1719975088566,1.56148386,61383.0,61382.0,0.02716004]
[1719975088915,1.53321427,61383.0,61382.0,0.02016004]
[1719975089058,1.53321427,61383.0,61382.0,0.02216004]
[1719975089258,1.53320239,61383.0,61382.0,0.02216004]
[1719975089485,0.15584777,61383.0,61382.0,0.18245884]
[1719975089689,0.15584777,61383.0,61382.0,0.31305884]
[1719975089993,0.15584777,61383.0,61382.0,0.26261466]
[1719975089994,0.390987,61383.0,61382.0,0.26261466]
[1719975090213,0.827745,61383.0,61382.0,0.02216004]
[1719975090399,0.827745,61383.0,61382.0,0.002]
[1719975090846,0.390987,61383.0,61382.0,0.1652988]
[1719975091717,0.390987,61383.0,61382.0,0.1602988]
[1719975091917,0.651645,61383.0,61382.0,0.1602988]
[1719975092120,0.651645,61383.0,61382.0,0.1622988]
[1719975092121,0.390987,61383.0,61382.0,0.1622988]
[1719975092823,0.390987,61383.0,61382.0,0.1602988]
[1719975093054,0.11256397,61383.0,61382.0,0.1652988]
[1719975093565,0.37322197,61383.0,61382.0,0.1602988]
[1719975093763,0.63387997,61383.0,61382.0,0.1632988]
[1719975094143,0.65939871,61383.0,61382.0,0.1632988]
[1719975094354,0.65939871,61383.0,61382.0,0.1662988]
[1719975094926,0.65939871,61383.0,61382.0,0.1682988]
[1719975095120,0.80069871,61383.0,61382.0,0.1682988]
[1719975095320,0.80069871,61383.0,61382.0,0.1662988]
[1719975095527,0.77517997,61383.0,61382.0,0.1662988]
[1719975095762,0.77517997,61383.0,61382.0,0.1682988]
[1719975096143,0.77517997,61383.0,61382.0,0.1622988]
[1719975096346,0.77517997,61383.0,61382.0,0.1652988]
[1719975096550,0.37322197,61383.0,61382.0,0.1652988]
[1719975097368,0.37322197,61383.0,61382.0,0.1622988]
[1719975097696,0.130327,61384.0,61383.0,0.1412]
[1719975097829,0.130327,61384.0,61383.0,0.38165462]
[1719975098031,0.390981,61384.0,61383.0,0.38165462]
[1719975098236,0.390981,61384.0,61383.0,0.1602988]
[1719975098479,0.00084,61390.0,61383.0,0.24045462]
[1719975098652,0.00084,61390.0,61385.0,0.3347]
[1719975098854,0.00084,61390.0,61386.0,0.1832988]
[1719975099370,0.131155,61390.0,61387.0,0.00325757]
[1719975099574,0.131155,61390.0,61388.0,0.1832988]
[1719975101319,0.130316,61389.0,61388.0,0.1602988]
[1719975101555,0.131155,61390.0,61388.0,0.1672988]
[1719975101761,0.131155,61390.0,61389.0,0.188]
[1719975101929,0.131155,61390.0,61389.0,0.44461466]
[1719975103221,0.131155,61390.0,61389.0,0.45061466]
[1719975103728,0.131155,61390.0,61389.0,0.58571466]
[1719975103729,0.00084,61390.0,61389.0,0.58571466]
[1719975104336,0.00084,61390.0,61389.0,0.51255884]
[1719975105981,0.00084,61390.0,61389.0,0.18945884]
[1719975106231,0.00084,61390.0,61389.0,0.21245884]
[1719975107065,0.00084,61390.0,61389.0,0.1962988]
[1719975107693,0.00084,61390.0,61389.0,0.1892988]
[1719975108112,0.00084,61390.0,61389.0,0.1972988]
[1719975108225,0.00084,61390.0,61389.0,0.1892988]
[1719975108436,0.00084,61390.0,61389.0,0.56739104]
[1719975108644,0.00084,61390.0,61389.0,0.70770704]
[1719975108849,0.00084,61390.0,61389.0,0.70170704]
[1719975109142,0.00084,61390.0,61389.0,0.70870704]
[1719975109821,0.00084,61390.0,61389.0,0.70170704]
[1719975110189,0.00084,61390.0,61389.0,0.70970704]
[1719975110783,0.00084,61390.0,61389.0,0.70644955]
[1719975110988,0.00084,61390.0,61389.0,0.57613355]
[1719975112233,0.00084,61390.0,61389.0,0.65628937]
[1719975113006,0.00084,61390.0,61389.0,0.28145462]
[1719975113654,0.00084,61390.0,61389.0,0.34138937]
[1719975114924,0.00084,61390.0,61389.0,2.86870437]
[1719975115075,0.00084,61390.0,61389.0,2.96870437]
[1719975115729,0.00084,61390.0,61389.0,2.40007137]
[1719975116112,0.00084,61390.0,61389.0,2.41407137]
[1719975116513,0.00084,61390.0,61389.0,2.70407137]
[1719975116915,0.00084,61390.0,61389.0,2.71807137]
[1719975117155,0.00084,61390.0,61389.0,2.70407137]
[1719975117513,0.00084,61390.0,61389.0,2.97870437]
[1719975117714,0.00084,61390.0,61389.0,2.96470437]
[1719975118488,0.00084,61390.0,61389.0,2.95070437]
[1719975118987,0.00084,61390.0,61389.0,2.70407137]
[1719975119230,0.00084,61390.0,61389.0,2.95070437]
[1719975119599,0.00084,61390.0,61389.0,2.96470437]
[1719975119801,0.00084,61390.0,61389.0,2.41807137]
[1719975119975,0.00084,61390.0,61389.0,2.71807137]
[1719975120180,0.00084,61390.0,61389.0,2.70407137]
[1719975120385,0.00084,61390.0,61389.0,1.57728255]
[1719975120762,0.00084,61390.0,61389.0,1.56328255]
[1719975121190,0.00084,61390.0,61389.0,1.57728255]
[1719975121349,0.00084,61390.0,61389.0,1.56328255]
[1719975121552,0.00084,61390.0,61389.0,1.57728255]
[1719975121752,0.00084,61390.0,61389.0,1.56328255]
[1719975121958,0.00084,61390.0,61389.0,1.57728255]
[1719975123685,0.00084,61390.0,61389.0,1.37728255]
[1719975126269,0.00084,61390.0,61389.0,1.07728255]
[1719975127310,0.00084,61390.0,61389.0,0.81664955]
[1719975129597,0.00084,61390.0,61389.0,0.2112988]
[1719975129942,0.00084,61390.0,61389.0,0.35138937]
[1719975130776,0.00084,61390.0,61389.0,0.35668862]
[1719975131000,0.00084,61390.0,61389.0,0.41662337]
[1719975131209,1.41905461,61390.0,61389.0,0.028]
[1719975131460,1.44503845,61390.0,61389.0,0.028]
[1719975131869,1.44503845,61390.0,61389.0,0.014]
[1719975132058,0.969735,61384.0,61383.0,0.000924]
[1719975132260,0.99525161,61384.0,61383.0,0.17738284]
[1719975133389,0.02551661,61384.0,61383.0,0.17738284]
[1719975133594,0.02551661,61386.0,61385.0,0.05993475]
[1719975133729,0.14184,61390.0,61389.0,0.08115582]
[1719975133930,0.14184,61390.0,61389.0,0.26445462]
[1719975134136,0.14084,61390.0,61389.0,0.26445462]
[1719975134331,0.14084,61390.0,61389.0,0.26345462]
[1719975134534,0.271154,61390.0,61389.0,0.26345462]
[1719975135341,0.390967,61386.0,61385.0,0.007]
[1719975135527,0.72448007,61386.0,61385.0,0.1602988]
[1719975135727,0.959612,61386.0,61385.0,0.1602988]
[1719975136549,0.698967,61386.0,61385.0,0.1602988]
[1719975136769,0.260635,61389.0,61386.0,0.05993475]
[1719975136967,0.00084,61390.0,61387.0,0.1832988]
[1719975137168,0.00084,61390.0,61389.0,0.004]
[1719975137448,0.00084,61390.0,61389.0,0.1602988]
[1719975137649,0.00084,61390.0,61389.0,0.1832988]
[1719975138261,0.00084,61390.0,61389.0,0.1872988]
[1719975139516,0.00084,61390.0,61389.0,0.51640706]
[1719975139690,0.00084,61390.0,61389.0,0.95954006]
[1719975139893,0.00084,61390.0,61389.0,0.95188906]
[1719975140667,0.00084,61390.0,61389.0,0.94488906]
[1719975140867,0.00084,61390.0,61389.0,0.95688906]
[1719975141022,0.00084,61390.0,61389.0,0.96763155]
[1719975141231,0.00084,61390.0,61389.0,0.95363155]
[1719975141452,0.31344,61390.0,61389.0,0.1496478]
[1719975141628,0.31344,61390.0,61389.0,0.1636478]
[1719975141827,0.443754,61390.0,61389.0,0.1496478]
[1719975142354,0.443754,61390.0,61389.0,0.1636478]
[1719975142863,0.704382,61390.0,61389.0,0.1776478]
[1719975143031,0.72989602,61390.0,61389.0,0.1776478]
[1719975143232,0.72989602,61390.0,61389.0,0.1636478]
[1719975143900,0.41797962,61390.0,61389.0,0.1776478]
[1719975144308,0.02703762,61390.0,61389.0,0.1636478]
[1719975144527,0.0015236,61390.0,61389.0,0.1776478]
[1719975144744,0.1318376,61390.0,61389.0,0.1776478]
[1719975145111,0.0015236,61390.0,61389.0,0.1776478]
[1719975146869,0.1405236,61390.0,61389.0,0.1776478]
[1719975147620,0.2708376,61390.0,61389.0,0.1776478]
[1719975151578,0.29635127,61390.0,61389.0,0.1776478]
[1719975152540,0.16603727,61390.0,61389.0,0.1776478]
[1719975154577,0.29635127,61390.0,61389.0,0.1776478]
[1719975155427,1.17841036,61390.0,61389.0,0.028]
[1719975155601,1.22683573,61390.0,61389.0,0.028]
[1719975155806,1.10577231,61390.0,61389.0,0.028]
[1719975156775,1.16577231,61390.0,61389.0,0.028]
[1719975156937,1.16610654,61390.0,61389.0,0.028]
[1719975157519,1.31123074,61390.0,61389.0,0.028]
[1719975157955,1.16610654,61390.0,61389.0,0.014]
[1719975158119,1.10610654,61390.0,61389.0,0.014]
[1719975158321,1.25123074,61390.0,61389.0,0.014]
[1719975158677,1.16610654,61390.0,61389.0,0.016]
[1719975159021,1.16610654,61390.0,61389.0,0.002]
[1719975159220,1.13823527,61390.0,61389.0,0.003]
[1719975159429,1.16600946,61390.0,61389.0,0.003]
[1719975159639,1.16600946,61390.0,61389.0,0.001]
[1719975159840,0.959135,61384.0,61383.0,0.000924]
[1719975160080,1.01260052,61384.0,61383.0,0.01708404]
[1719975161528,1.08711178,61384.0,61383.0,0.01708404]
[1719975161743,1.01460052,61384.0,61383.0,0.01708404]
[1719975161917,1.01260052,61384.0,61383.0,0.01708404]
[1719975162179,1.11231438,61384.0,61383.0,0.01708404]
[1719975162382,1.08434102,61384.0,61383.0,0.01708404]
[1719975162589,1.01496122,61384.0,61383.0,0.01708404]
[1719975162992,1.01396122,61384.0,61383.0,0.01708404]
[1719975163213,0.98564867,61384.0,61383.0,0.01708404]
[1719975163329,1.0860679,61384.0,61383.0,0.01708404]
[1719975163533,1.08706853,61384.0,61383.0,0.01708404]
[1719975163779,1.01455343,61384.0,61383.0,0.01708404]
[1719975164584,1.05816396,61384.0,61383.0,0.01708404]